fUST/lending_fUST_20240921
["ID","MTS","AMOUNT","RATE_DAILY","PERIOD"]
[338806125,1726920642048,-500.0,0.00014166,2]
[338806126,1726920642058,-500.0,0.00014166,2]
[338806127,1726920642068,-500.0,0.00014166,2]
[338806128,1726920642078,-500.0,0.00014166,2]
[338806129,1726920642087,-500.0,0.00014166,2]
[338806130,1726920642097,-500.0,0.00014166,2]
[338806131,1726920642106,-500.0,0.00014166,2]
[338806132,1726920642114,-505.29061581,0.00014166,2]
[338806133,1726920642124,-567.52878996,0.00014166,2]
[338806134,1726920642133,-500.0,0.00014166,2]
[338806135,1726920642142,-500.0,0.00014166,2]
[338806136,1726920642152,-500.0,0.00014166,2]
[338806137,1726920642161,-500.0,0.00014166,2]
[338806138,1726920642170,-500.0,0.00014166,2]
[338806139,1726920642180,-500.0,0.00014166,2]
[338806140,1726920642189,-241.44670329,0.00014166,2]
[338806141,1726920642198,-500.0,0.00014166,2]
[338806142,1726920642207,-500.0,0.00014166,2]
[338806143,1726920642216,-500.0,0.00014166,2]
[338806144,1726920642226,-500.0,0.00014166,2]
[338806145,1726920642236,-500.0,0.00014166,2]
[338806146,1726920642245,-500.0,0.00014166,2]
[338806147,1726920642254,-500.0,0.00014166,2]
[338806148,1726920642264,-500.0,0.00014166,2]
[338806149,1726920642273,-500.0,0.00014166,2]
[338806150,1726920642283,-500.0,0.00014166,2]
[338806151,1726920642292,-500.0,0.00014166,2]
[338806152,1726920642303,-500.0,0.00014166,2]
[338806153,1726920642312,-500.0,0.00014166,2]
[338806154,1726920642321,-500.0,0.00014166,2]
[338806155,1726920642330,-500.0,0.00014166,2]
[338806156,1726920642340,-500.0,0.00014166,2]
[338806157,1726920642349,-500.0,0.00014166,2]
[338806158,1726920642359,-500.0,0.00014166,2]
[338806159,1726920642368,-500.0,0.00014166,2]
[338806160,1726920642378,-500.0,0.00014166,2]
[338806161,1726920642388,-500.0,0.00014166,2]
[338806163,1726920642398,-500.0,0.00014166,2]
[338806165,1726920642408,-500.0,0.00014166,2]
[338806166,1726920642417,-500.0,0.00014166,2]
[338806167,1726920642428,-500.0,0.00014166,2]
[338806168,1726920642438,-500.0,0.00014166,2]
[338806169,1726920642450,-500.0,0.00014166,2]
[338806170,1726920642460,-500.0,0.00014166,2]
[338806171,1726920642472,-500.0,0.00014166,2]
[338806172,1726920642481,-500.0,0.00014166,2]
[338806173,1726920642493,-500.0,0.00014166,2]
[338806174,1726920642504,-500.0,0.00014166,2]
[338806175,1726920642513,-500.0,0.00014166,2]
[338806176,1726920642523,-500.0,0.00014166,2]
[338806177,1726920642532,-500.0,0.00014166,2]
[338806178,1726920642542,-500.0,0.00014166,2]
[338806180,1726920642553,-500.0,0.00014166,2]
[338806182,1726920642562,-500.0,0.00014166,2]
[338806183,1726920642572,-500.0,0.00014166,2]
[338806185,1726920642583,-500.0,0.00014166,2]
[338806187,1726920642593,-500.0,0.00014166,2]
[338806189,1726920642604,-500.0,0.00014166,2]
[338806191,1726920642613,-500.0,0.00014166,2]
[338806193,1726920642623,-500.0,0.00014166,2]
[338806195,1726920642632,-500.0,0.00014166,2]
[338806196,1726920642643,-500.0,0.00014166,2]
[338806197,1726920642652,-500.0,0.00014166,2]
[338806199,1726920642661,-500.0,0.00014166,2]
[338806201,1726920642670,-500.0,0.00014166,2]
[338806202,1726920642679,-500.0,0.00014166,2]
[338806203,1726920642689,-500.0,0.00014166,2]
[338806204,1726920642698,-557.80491455,0.00014166,2]
[338806205,1726920642706,-503.19793859,0.00014166,2]
[338806206,1726920642715,-500.22615038,0.00014166,2]
[338806207,1726920642725,-500.0,0.00014166,2]
[338806208,1726920642734,-500.0,0.00014166,2]
[338806209,1726920642743,-680.35,0.00014166,2]
[338806210,1726920642752,-500.0,0.00014166,2]
[338806211,1726920642762,-500.0,0.00014166,2]
[338806213,1726920642771,-500.0,0.00014166,2]
[338806214,1726920642780,-500.0,0.00014166,2]
[338806216,1726920642790,-628.02,0.00014166,2]
[338806218,1726920642799,-500.0,0.00014166,2]
[338806219,1726920642809,-500.0,0.00014166,2]
[338806220,1726920642818,-500.0,0.00014166,2]
[338806221,1726920642827,-529.96,0.00014166,2]
[338806222,1726920642836,-500.0,0.00014166,2]
[338806223,1726920642846,-500.0,0.00014166,2]
[338806224,1726920642855,-500.0,0.00014166,2]
[338806225,1726920642865,-598.12089656,0.00014166,2]
[338806226,1726920642874,-500.0,0.00014166,2]
[338806227,1726920642883,-500.0,0.00014166,2]
[338806228,1726920642895,-280.82396635,0.00014166,2]
[338806229,1726920642907,-500.0,0.00014166,2]
[338806230,1726920642916,-500.0,0.00014166,2]
[338806231,1726920642927,-500.0,0.00014166,2]
[338806232,1726920642938,-500.0,0.00014166,2]
[338806233,1726920642947,-508.85454329,0.00014166,2]
[338806234,1726920642957,-500.0,0.00014166,2]
[338806235,1726920642966,-514.93,0.00014166,2]
[338806236,1726920642976,-740.46,0.00014166,2]
[338806237,1726920642985,-500.0,0.00014166,2]
[338806238,1726920642996,-500.0,0.00014166,2]
[338806239,1726920643005,-500.0,0.00014166,2]
[338806240,1726920643016,-500.0,0.00014166,2]
[338806241,1726920643028,-501.2792611,0.00014166,2]
[338806242,1726920643039,-500.0,0.00014166,2]
[338806243,1726920643048,-500.0,0.00014166,2]
[338806244,1726920643057,-503.13582169,0.00014166,2]
[338806245,1726920643066,-500.0,0.00014166,2]
[338806246,1726920643076,-500.0,0.00014166,2]
[338806247,1726920643086,-200.0,0.00014166,2]
[338806248,1726920643095,-500.0,0.00014166,2]
[338806249,1726920643104,-500.0,0.00014166,2]
[338806250,1726920643113,-74259.940345,0.00014167,2]
[338806251,1726920643122,-74529.3918643,0.00014167,2]
[338806252,1726920643131,-500.0,0.00014174,2]
[338806253,1726920643142,-500.0,0.00014175,2]
[338806254,1726920643151,-268.33218089,0.00014175,2]
[338806255,1726920643160,-211.14013163,0.00014176,2]
[338806256,1726920643169,-500.0,0.00014176,2]
[338806257,1726920643181,-500.0,0.00014177,2]
[338806258,1726920643192,-500.0,0.00014177,2]
[338806259,1726920643201,-500.0,0.00014177,2]
[338806260,1726920643210,-500.0,0.00014177,2]
[338806261,1726920643219,-388.24547586,0.00014177,2]
[338806262,1726920643228,-500.0,0.00014177,2]
[338806263,1726920643237,-500.0,0.00014177,2]
[338806264,1726920643246,-500.0,0.00014177,2]
[338806265,1726920643255,-430.72399219,0.00014177,2]
[338806266,1726920643265,-500.0,0.00014177,2]
[338806267,1726920643274,-500.0,0.00014177,2]
[338806268,1726920643283,-892.76,0.00014177,2]
[338806269,1726920643292,-500.0,0.00014177,2]
[338806270,1726920643302,-500.0,0.00014177,2]
[338806271,1726920643311,-500.0,0.00014177,2]
[338806272,1726920643320,-500.0,0.00014177,2]
[338806273,1726920643330,-500.0,0.00014177,2]
[338806274,1726920643339,-500.0,0.00014177,2]
[338806275,1726920643348,-500.0,0.00014177,2]
[338806276,1726920643357,-500.0,0.00014177,2]
[338806277,1726920643366,-500.0,0.00014177,2]
[338806278,1726920643375,-500.0,0.00014177,2]
[338806279,1726920643385,-591.12,0.00014177,2]
[338806280,1726920643395,-500.0,0.00014177,2]
[338806281,1726920643404,-506.92,0.00014177,2]
[338806282,1726920643413,-625.71,0.00014177,2]
[338806283,1726920643423,-500.0,0.00014177,2]
[338806284,1726920643435,-585.61993875,0.00014177,2]
[338806285,1726920643446,-500.0,0.00014177,2]
[338806286,1726920643456,-500.0,0.00014177,2]
[338806287,1726920643467,-656.74,0.00014177,2]
[338806288,1726920643477,-500.0,0.00014177,2]
[338806289,1726920643487,-500.0,0.00014177,2]
[338806290,1726920643501,-500.0,0.00014177,2]
[338806291,1726920643510,-500.0,0.00014177,2]
[338806292,1726920643519,-500.0,0.00014177,2]
[338806293,1726920643529,-385.33692307,0.00014177,2]
[338806294,1726920643538,-500.0,0.00014177,2]
[338806295,1726920643547,-500.0,0.00014177,2]
[338806296,1726920643556,-500.0,0.00014177,2]
[338806297,1726920643565,-500.0,0.00014177,2]
[338806298,1726920643574,-565.50335819,0.00014177,2]
[338806299,1726920643584,-197.15480101,0.00014177,2]
[338806300,1726920643594,-500.0,0.00014177,2]
[338806301,1726920643604,-500.0,0.00014177,2]
[338806302,1726920643613,-500.0,0.00014177,2]
[338806303,1726920643622,-500.0,0.00014177,2]
[338806304,1726920643632,-500.0,0.00014177,2]
[338806305,1726920643642,-324.96272311,0.00014177,2]
[338806306,1726920643651,-500.0,0.00014177,2]
[338806307,1726920643660,-500.0,0.00014177,2]
[338806308,1726920643670,-500.0,0.00014177,2]
[338806309,1726920643678,-500.0,0.00014177,2]
[338806310,1726920643688,-500.0,0.00014177,2]
[338806311,1726920643697,-500.0,0.00014177,2]
[338806312,1726920643706,-500.0,0.00014177,2]
[338806313,1726920643715,-500.0,0.00014177,2]
[338806314,1726920643724,-500.0,0.00014177,2]
[338806315,1726920643733,-500.0,0.00014177,2]
[338806316,1726920643745,-500.0,0.00014177,2]
[338806317,1726920643754,-500.0,0.00014177,2]
[338806318,1726920643763,-500.0,0.00014177,2]
[338806319,1726920643772,-500.0,0.00014177,2]
[338806320,1726920643782,-1336.79,0.00014177,2]
[338806321,1726920643791,-500.0,0.00014177,2]
[338806322,1726920643800,-500.0,0.00014177,2]
[338806323,1726920643809,-500.0,0.00014177,2]
[338806324,1726920643820,-500.0,0.00014177,2]
[338806325,1726920643829,-500.0,0.00014177,2]
[338806326,1726920643838,-500.0,0.00014177,2]
[338806327,1726920643847,-500.0,0.00014177,2]
[338806328,1726920643856,-500.0,0.00014177,2]
[338806329,1726920643865,-500.0,0.00014177,2]
[338806330,1726920643875,-514.69753061,0.00014177,2]
[338806331,1726920643884,-500.0,0.00014177,2]
[338806332,1726920643893,-500.0,0.00014177,2]
[338806333,1726920643904,-599.23616822,0.00014177,2]
[338806334,1726920643913,-500.0,0.00014177,2]
[338806335,1726920643923,-500.0,0.00014177,2]
[338806336,1726920643932,-500.0,0.00014177,2]
[338806337,1726920643942,-500.0,0.00014177,2]
[338806338,1726920643952,-500.0,0.00014177,2]
[338806339,1726920643962,-500.0,0.00014177,2]
[338806340,1726920643971,-500.0,0.00014177,2]
[338806341,1726920643980,-500.0,0.00014177,2]
[338806342,1726920643989,-507.49,0.00014177,2]
[338806343,1726920643998,-500.0,0.00014177,2]
[338806344,1726920644008,-500.0,0.00014177,2]
[338806345,1726920644017,-445.53867693,0.00014177,2]
[338806346,1726920644027,-500.0,0.00014177,2]
[338806347,1726920644038,-500.0,0.00014177,2]
[338806348,1726920644048,-458.95764943,0.00014177,2]
[338806349,1726920644057,-500.0,0.00014177,2]
[338806350,1726920644067,-500.0,0.00014177,2]
[338806351,1726920644076,-500.0,0.00014177,2]
[338806352,1726920644085,-500.0,0.00014177,2]
[338806353,1726920644095,-500.0,0.00014177,2]
[338806354,1726920644104,-646.66,0.00014177,2]
[338806355,1726920644114,-500.0,0.00014177,2]
[338806356,1726920644123,-500.0,0.00014177,2]
[338806357,1726920644133,-500.0,0.00014177,2]
[338806358,1726920644145,-500.0,0.00014177,2]
[338806359,1726920644154,-601.7473921,0.00014177,2]
[338806360,1726920644163,-500.0,0.00014177,2]
[338806361,1726920644173,-500.319564,0.00014177,2]
[338806362,1726920644182,-500.0,0.00014177,2]
[338806363,1726920644191,-500.0,0.00014177,2]
[338806364,1726920644199,-502.21287056,0.00014177,2]
[338806365,1726920644209,-500.0,0.00014177,2]
[338806366,1726920644218,-500.0,0.00014177,2]
[338806367,1726920644228,-500.0,0.00014177,2]
[338806368,1726920644237,-500.0,0.00014177,2]
[338806369,1726920644247,-500.0,0.00014177,2]
[338806370,1726920644256,-635.67,0.00014177,2]
[338806371,1726920644265,-500.0,0.00014177,2]
[338806372,1726920644274,-500.0,0.00014177,2]
[338806373,1726920644284,-500.0,0.00014177,2]
[338806374,1726920644294,-500.0,0.00014186,2]
[338806375,1726920644305,-500.0,0.00014186,2]
[338806376,1726920644314,-500.0,0.00014186,2]
[338806377,1726920644324,-480.36777,0.00014186,2]
[338806378,1726920644334,-480.36777,0.00014186,2]
[338806379,1726920644343,-500.0,0.00014187,2]
[338806380,1726920644354,-500.0,0.00014187,2]
[338806381,1726920644364,-472.3290829,0.00014187,2]
[338806382,1726920644373,-500.0,0.00014187,2]
[338806383,1726920644384,-500.0,0.00014187,2]
[338806384,1726920644394,-500.0,0.00014187,2]
[338806385,1726920644403,-500.0,0.00014187,2]
[338806386,1726920644413,-500.0,0.00014187,2]
[338806387,1726920644422,-500.0,0.00014187,2]
[338806388,1726920644432,-558.543896,0.00014187,2]
[338806389,1726920644442,-500.0,0.00014187,2]
[338806390,1726920644452,-552.98704923,0.00014187,2]
[338806391,1726920644463,-1159.9521126,0.0001425,2]
[338806392,1726920644472,-37264.6959322,0.00014281,2]
[338806393,1726920644481,-150.112233,0.000143,2]
[338806394,1726920644491,-150.112233,0.000143,2]
[338806395,1726920644503,-150.112233,0.000143,2]
[338806396,1726920644513,-22053.805846,0.00014311,2]
[338806397,1726920644522,-900.79884387,0.0001433,2]
[338806398,1726920644531,-205.0,0.0001434,2]
[338806399,1726920644544,-150.112233,0.000144,2]
[338806400,1726920644555,-150.112233,0.000144,2]
[338806401,1726920644564,-150.112233,0.000144,2]
[338806402,1726920644574,-500.0,0.00014429,2]
[338806403,1726920644584,-545.04,0.00014429,2]
[338806404,1726920644595,-500.0,0.00014429,2]
[338806405,1726920644606,-14966.04,0.00014429,2]
[338806406,1726920644617,-2185.12,0.00014429,2]
[338806407,1726920644628,-500.0,0.00014439,2]
[338806408,1726920644638,-573.12,0.00014439,2]
[338806409,1726920644648,-462.3874757,0.0001444,2]
[338806410,1726920644658,-500.0,0.0001444,2]
[338806411,1726920644667,-500.0,0.0001444,2]
[338806412,1726920644677,-500.0,0.0001444,2]
[338806413,1726920644686,-591.46,0.0001444,2]
[338806414,1726920644696,-500.0,0.0001444,2]
[338806415,1726920644706,-500.0,0.0001444,2]
[338806416,1726920644716,-500.0,0.0001444,2]
[338806417,1726920644726,-580.99,0.0001444,2]
[338806418,1726920644738,-500.0,0.0001444,2]
[338806419,1726920644748,-500.0,0.0001444,2]
[338806420,1726920644759,-500.0,0.0001444,2]
[338806421,1726920644768,-500.0,0.0001444,2]
[338806422,1726920644778,-500.0,0.0001444,2]
[338806423,1726920644787,-500.0,0.0001444,2]
[338806424,1726920644797,-500.0,0.0001444,2]
[338806425,1726920644807,-511.54,0.0001444,2]
[338806426,1726920644816,-500.0,0.0001444,2]
[338806427,1726920644826,-500.0,0.0001444,2]
[338806428,1726920644835,-1048.02,0.0001444,2]
[338806429,1726920644848,-500.0,0.0001444,2]
[338806430,1726920644857,-500.0,0.0001444,2]
[338806431,1726920644867,-500.0,0.0001444,2]
[338806432,1726920644877,-500.0,0.0001444,2]
[338806433,1726920644887,-240.6238477,0.0001444,2]
[338806434,1726920644898,-500.0,0.0001444,2]
[338806435,1726920644908,-500.0,0.0001444,2]
[338806436,1726920644918,-500.0,0.0001444,2]
[338806437,1726920644929,-500.0,0.0001444,2]
[338806438,1726920644939,-500.0,0.0001444,2]
[338806439,1726920644949,-214.73504258,0.0001444,2]
[338806440,1726920644958,-808.54,0.0001444,2]
[338806441,1726920644968,-500.0,0.0001444,2]
[338806442,1726920644977,-500.0,0.0001444,2]
[338806443,1726920644986,-500.0,0.0001444,2]
[338806444,1726920644995,-778.54,0.0001444,2]
[338806445,1726920645007,-500.0,0.0001444,2]
[338806446,1726920645016,-382.7023557,0.0001444,2]
[338806447,1726920645026,-500.0,0.0001444,2]
[338806448,1726920645036,-500.0,0.0001444,2]
[338806449,1726920645045,-245.79,0.0001444,2]
[338806450,1726920645054,-500.0,0.0001444,2]
[338806451,1726920645063,-500.0,0.0001444,2]
[338806452,1726920645073,-500.0,0.0001444,2]
[338806453,1726920645082,-500.0,0.0001444,2]
[338806454,1726920645091,-500.0,0.0001444,2]
[338806455,1726920645101,-541.98605961,0.0001444,2]
[338806456,1726920645111,-500.0,0.0001444,2]
[338806457,1726920645120,-500.0,0.0001444,2]
[338806458,1726920645130,-500.0,0.0001444,2]
[338806459,1726920645140,-500.0,0.0001444,2]
[338806460,1726920645150,-500.0,0.0001444,2]
[338806461,1726920645159,-283.26,0.0001444,2]
[338806462,1726920645168,-500.0,0.0001444,2]
[338806463,1726920645177,-505.26834954,0.0001444,2]
[338806464,1726920645186,-500.0,0.0001444,2]
[338806465,1726920645196,-500.0,0.0001444,2]
[338806466,1726920645206,-500.0,0.0001444,2]
[338806467,1726920645216,-500.0,0.0001444,2]
[338806468,1726920645226,-500.0,0.0001444,2]
[338806469,1726920645236,-500.0,0.0001444,2]
[338806470,1726920645245,-501.86951085,0.0001444,2]
[338806471,1726920645255,-419.17,0.0001444,2]
[338806472,1726920645265,-500.0,0.0001444,2]
[338806473,1726920645274,-500.0,0.0001444,2]
[338806474,1726920645284,-500.0,0.0001444,2]
[338806475,1726920645293,-500.0,0.0001444,2]
[338806476,1726920645302,-500.0,0.0001444,2]
[338806477,1726920645311,-500.0,0.0001444,2]
[338806478,1726920645321,-500.0,0.0001444,2]
[338806479,1726920645330,-505.08249481,0.0001444,2]
[338806480,1726920645339,-501.97088384,0.0001444,2]
[338806481,1726920645349,-500.0,0.0001444,2]
[338806482,1726920645358,-500.0,0.0001444,2]
[338806483,1726920645367,-500.0,0.0001444,2]
[338806484,1726920645376,-500.0,0.0001444,2]
[338806485,1726920645385,-501.26830144,0.0001444,2]
[338806486,1726920645396,-500.0,0.0001444,2]
[338806487,1726920645405,-500.0,0.0001444,2]
[338806488,1726920645414,-500.0,0.0001444,2]
[338806489,1726920645424,-500.0,0.0001444,2]
[338806490,1726920645433,-500.0,0.0001444,2]
[338806491,1726920645443,-500.0,0.0001444,2]
[338806492,1726920645452,-419.96644867,0.0001444,2]
[338806513,1726920665107,500.0,0.0001267,2]
[338806516,1726920800182,250.0,0.00013243,2]
[338806517,1726920845637,19981.9422111,0.00013369,2]
[338806519,1726921202716,446.4528325,0.00013699,2]
[338806520,1726921224798,7140.47594759,0.00013985,2]
[338806521,1726921230041,24900.0,0.00013149,2]
[338806522,1726921290508,2634.08449363,0.00014,2]
[338806523,1726921332598,-1083.0,0.00023233,120]
[338806524,1726921346989,160.3678,0.00013144,2]
[338806525,1726921347230,160.3678,0.00013153,2]
[338806526,1726921347583,160.3678,0.00013162,2]
[338806527,1726921348372,160.3678,0.00013172,2]
[338806528,1726921348790,160.3678,0.00013181,2]
[338806529,1726921349040,160.3678,0.0001319,2]
[338806530,1726921349253,160.3678,0.000132,2]
[338806531,1726921349484,160.3678,0.00013209,2]
[338806533,1726921363329,500.0,0.0001267,2]
[338806534,1726921467453,-28.0,0.00023233,120]
[338806535,1726921467676,-263.66723,0.00024,120]
[338806536,1726921467727,-28.0,0.00024,120]
[338806537,1726921467764,-3868.66554,0.00024,120]
[338806538,1726921562155,162.5,0.00013241,2]
[338806539,1726921562384,162.5,0.00013277,2]
[338806540,1726921562642,162.5,0.00013313,2]
[338806541,1726921562860,162.5,0.00013349,2]
[338806542,1726921563079,162.5,0.00013386,2]
[338806543,1726921563303,162.5,0.00013422,2]
[338806544,1726921563524,162.5,0.00013458,2]
[338806545,1726921563756,162.5,0.00013495,2]
[338806546,1726921564227,162.5,0.00013531,2]
[338806547,1726921564487,162.5,0.00013567,2]
[338806548,1726921564530,162.5,0.00013604,2]
[338806549,1726921566832,162.5,0.0001364,2]
[338806550,1726921567053,162.5,0.00013676,2]
[338806551,1726921567278,162.5,0.00013712,2]
[338806552,1726921567487,162.5,0.00013749,2]
[338806553,1726921567694,162.5,0.00013785,2]
[338806554,1726921567897,162.5,0.00013821,2]
[338806555,1726921568112,162.5,0.00013858,2]
[338806556,1726921568349,162.5,0.00013894,2]
[338806557,1726921568660,162.5,0.0001393,2]
[338806558,1726921663395,663.54820907,0.00013944,2]
[338806559,1726921683135,727.773698,0.00013699,2]
[338806596,1726921832344,-1778.14341457,0.00014017,2]
[338806621,1726921838228,-5362.33253302,0.00014017,2]
[338806622,1726921838238,-465.5955885,0.00014031,2]
[338806623,1726921838249,-900.79884387,0.00014054,2]
[338806624,1726921838261,-300.0,0.00014123,2]
[338806625,1726921838270,-500.0,0.00014124,2]
[338806626,1726921838279,-500.0,0.00014124,2]
[338806627,1726921838289,-34357.1574886,0.00014124,2]
[338806628,1726921838299,-34357.1574886,0.00014131,2]
[338806629,1726921838308,-103071.472466,0.00014132,2]
[338806630,1726921838317,-32896.7143621,0.00014133,2]
[338806631,1726921838328,-34357.1574886,0.00014133,2]
[338806632,1726921838338,-500.0,0.00014133,2]
[338806633,1726921838349,-250.0,0.00014133,2]
[338806634,1726921838360,-500.0,0.00014133,2]
[338806635,1726921838369,-500.0,0.00014133,2]
[338806636,1726921838379,-500.0,0.00014133,2]
[338806637,1726921838389,-500.0,0.00014133,2]
[338806638,1726921838399,-500.0,0.00014133,2]
[338806639,1726921838410,-500.0,0.00014133,2]
[338806640,1726921838422,-500.0,0.00014133,2]
[338806641,1726921838432,-257.84896523,0.00014133,2]
[338806642,1726921838441,-500.0,0.00014133,2]
[338806643,1726921838451,-500.0,0.00014133,2]
[338806644,1726921838460,-500.0,0.00014133,2]
[338806645,1726921838470,-500.0,0.00014133,2]
[338806646,1726921838480,-500.0,0.00014133,2]
[338806647,1726921838489,-500.0,0.00014133,2]
[338806648,1726921838499,-152.84928671,0.00014133,2]
[338806649,1726921838509,-500.0,0.00014133,2]
[338806650,1726921838520,-500.0,0.00014133,2]
[338806651,1726921838529,-500.0,0.00014133,2]
[338806652,1726921838539,-500.0,0.00014133,2]
[338806653,1726921838549,-500.0,0.00014133,2]
[338806654,1726921838558,-500.0,0.00014133,2]
[338806655,1726921838568,-500.0,0.00014133,2]
[338806656,1726921838578,-500.0,0.00014133,2]
[338806657,1726921838587,-500.0,0.00014133,2]
[338806658,1726921838605,-500.0,0.00014133,2]
[338806659,1726921838618,-500.0,0.00014133,2]
[338806660,1726921838627,-500.0,0.00014133,2]
[338806661,1726921838637,-500.0,0.00014133,2]
[338806662,1726921838647,-500.0,0.00014133,2]
[338806663,1726921838657,-500.0,0.00014133,2]
[338806664,1726921838682,-500.0,0.00014133,2]
[338806665,1726921838696,-500.0,0.00014133,2]
[338806666,1726921838711,-500.0,0.00014133,2]
[338806667,1726921838726,-500.0,0.00014133,2]
[338806668,1726921838740,-500.0,0.00014133,2]
[338806669,1726921838753,-500.0,0.00014133,2]
[338806670,1726921838766,-534.17379786,0.00014133,2]
[338806671,1726921838779,-500.0,0.00014133,2]
[338806672,1726921838793,-500.0,0.00014133,2]
[338806673,1726921838805,-500.0,0.00014133,2]
[338806674,1726921838818,-500.0,0.00014133,2]
[338806675,1726921838832,-500.0,0.00014133,2]
[338806676,1726921838843,-32896.7143621,0.00014134,2]
[338806677,1726921838856,-68714.3149772,0.00014134,2]
[338806678,1726921838868,-29271.23584674,0.00014134,2]
[338806679,1726921838892,-500.0,0.00014124,2]
[338806680,1726921838905,-3625.47851536,0.00014134,2]
[338806681,1726921838918,-32896.7143621,0.00014135,2]
[338806682,1726921838930,-32896.7143621,0.00014141,2]
[338806683,1726921838942,-500.0,0.00014141,2]
[338806684,1726921838953,-522.33,0.00014141,2]
[338806685,1726921838965,-500.0,0.00014141,2]
[338806686,1726921838978,-14342.45,0.00014141,2]
[338806687,1726921838990,-2094.08,0.00014141,2]
[338806688,1726921839003,-354.05061114,0.00014141,2]
[338806689,1726921839016,-291.20822861,0.00014141,2]
[338806690,1726921839028,-500.0,0.00014141,2]
[338806691,1726921839040,-500.0,0.00014141,2]
[338806692,1726921839052,-500.0,0.00014141,2]
[338806693,1726921839063,-500.0,0.00014141,2]
[338806694,1726921839074,-500.0,0.00014141,2]
[338806695,1726921839090,-260.40271533,0.00014141,2]
[338806696,1726921839102,-500.0,0.00014141,2]
[338806697,1726921839113,-500.0,0.00014141,2]
[338806698,1726921839125,-500.0,0.00014141,2]
[338806699,1726921839137,-500.0,0.00014141,2]
[338806700,1726921839148,-366.70700942,0.00014141,2]
[338806701,1726921839164,-500.0,0.00014141,2]
[338806702,1726921839176,-500.0,0.00014141,2]
[338806703,1726921839188,-500.0,0.00014141,2]
[338806704,1726921839205,-500.0,0.00014141,2]
[338806705,1726921839218,-500.0,0.00014141,2]
[338806706,1726921839235,-500.0,0.00014141,2]
[338806707,1726921839248,-500.0,0.00014141,2]
[338806708,1726921839261,-500.0,0.00014141,2]
[338806709,1726921839272,-500.0,0.00014141,2]
[338806710,1726921839283,-500.0,0.00014141,2]
[338806711,1726921839294,-500.0,0.00014141,2]
[338806712,1726921839304,-500.0,0.00014141,2]
[338806713,1726921839316,-169.93724167,0.00014142,2]
[338806714,1726921839329,-500.0,0.00014142,2]
[338806715,1726921839341,-549.24,0.00014142,2]
[338806716,1726921839353,-14273.34837511,0.00014142,2]
[338806735,1726921839981,-36650.76696815,0.00014142,2]
[338806736,1726921840039,-14869.31338094,0.00014142,2]
[338806737,1726921840051,-388.67,0.00014143,2]
[338806738,1726921840063,-500.0,0.00014143,2]
[338806739,1726921840077,-500.0,0.00014143,2]
[338806740,1726921840092,-500.0,0.00014143,2]
[338806741,1726921840103,-500.0,0.00014143,2]